Cogmind - Beta 14 @@@ ROGUE MODE // 2025.01.13 @ 23:20:30 Player: hvatnajokl Result: Destroyed by G-34 Mercenary with Small Laser Performance ------------- Evolutions (1) 500 Regions Visited (3) 600 Robots Destroyed (15) 75 Value Destroyed (298) 298 Prototype IDs (0) 0 Alien Tech Used (0) 0 Bonus (0) 0 TOTAL SCORE: 1473 Bonus ------- None Cogmind --------- Core Integrity 0/400 Matter 300/300 Energy 100/100 System Corruption 0% Temperature Cool (6) Movement Core (1550) Ox30 Location -9/Materials Parts ------- > --- POWER (2) -------- (None) > --- PROPULSION (2) --- (None) > --- UTILITY (3) ------ Medium Storage Unit Huge Storage Unit > --- WEAPON (2) ------- Flail > --- INVENTORY (25) --- Small Storage Unit Hardened Medium Armor Plating Light Assault Rifle Peak State ------------ > --- POWER ------------ Deuterium Engine > --- PROPULSION ------- Flight Unit Flight Unit > --- UTILITY ---------- Huge Storage Unit Hardened Medium Armor Plating > --- WEAPON ----------- Light Assault Rifle Light Assault Rifle > --- INVENTORY -------- Ion Engine Small Storage Unit Medium Storage Unit [Rating: 11] Favorites ----------- Power Deuterium Engine Engine Deuterium Engine Propulsion Flight Unit Leg Aluminum Leg Wheel Compact Wheel Flight Unit Flight Unit Utility Huge Storage Unit Storage Huge Storage Unit Protection Hardened Medium Armor Plating Weapon Light Assault Rifle Energy Gun EM Pulse Gun Ballistic Gun Light Assault Rifle Impact Weapon Flail Build | -11 -10 -10 -9 ------- Run | Yrd Mat Min Mat Slots Evolved 2 | . . . 2 Power 1 | . . . 1 Propulsion . | . . . . Utility 1 | . . . 1 Weapon . | . . . . Parts Attached 21 | 5 1 14 1 Power 5 | 1 . 4 . Engine 5 | 1 . 4 . Core . | . . . . Reactor . | . . . . Propulsion 6 | 2 . 4 . Treads . | . . . . Leg 2 | . . 2 . Wheel 2 | 2 . . . Hover . | . . . . Flight 2 | . . 2 . Utility 5 | 1 1 3 . Device . | . . . . Storage 4 | 1 1 2 . Processor . | . . . . Hackware . | . . . . Protection 1 | . . 1 . Artifact . | . . . . Weapon 5 | 1 . 3 1 Energy Gun 2 | 1 . 1 . Energy Cannon . | . . . . Ballistic Gun 2 | . . 2 . Ballistic Cannon . | . . . . Launcher . | . . . . Special Weapon . | . . . . Impact Weapon 1 | . . . 1 Slashing Weapon . | . . . . Piercing Weapon . | . . . . Special Melee Weapon . | . . . . Unidentified Prototypes . | . . . . Parts Lost 5 | . . 2 3 Power 1 | . . . 1 Propulsion 2 | . . . 2 Utility . | . . . . Weapon 2 | . . 2 . Highest Loss Streak 3 | . . 1 3 To Critical Strikes 1 | . . 1 . Average Slot Usage (%) 81 | . 83 90 57 Engine 11 | . 14 13 6 Leg 6 | . . 3 13 Wheel 4 | . 28 5 . Flight 11 | . . 16 . Storage 17 | . 26 15 22 Protection 7 | . . 10 . Energy Gun 2 | . 14 2 . Ballistic Gun 15 | . . 21 4 Impact Weapon 2 | . . . 10 Peak Build Rating 11 | 5 6 11 8 Average Rating 8 | 3 5 9 6 On Entrance 4 | . 5 6 6 Naked Turns . | . . . . Heaviest Build 102 | 12 22 102 98 Greatest Support 32 | 32 32 32 20 Greatest Overweight (x) 32 | . . 32 30 Average Overweight (x) 4 | . . 4 7 Largest Inventory Capacity 25 | 8 10 25 25 Average Capacity 22 | 6 9 23 25 Most Carried 4 | 2 . 4 3 Average Carried 2 | . . 2 2 Final Capacity 25 | 8 10 25 25 Final Carried 3 | . . 2 3 Class Distribution -------------------- 63% | Mutant 36% | Scavenger-Mutant Dominant Class ---------------- Mutant | -10/Materials Scavenger-Mutant | -10/Mines Mutant | -9/Materials Resources | -11 -10 -10 -9 ----------- Run | Yrd Mat Min Mat Matter Collected 452 | 250 . 189 13 Remotely . | . . . . Salvage Created 402 | . . 290 112 Parts 24 | . . 20 4 Haulers Intercepted . | . . . . Recyclers Shooed . | . . . . Parts Field Recycled . | . . . . Retrieved Matter . | . . . . Parts Self-Destructed . | . . . . Prevented . | . . . . Kills | -11 -10 -10 -9 ------- Run | Yrd Mat Min Mat Combat Hostiles Destroyed 14 | . . 11 3 Melee 2 | . . . 2 Guns 10 | . . 10 . AOE 1 | . . 1 . Classes Destroyed 3 | . . 3 . Worker 1 | . . 1 . Swarmer 8 | . . 8 . Grunt 6 | . . 3 3 Best Kill Streak 4 | . . 4 1 Combat Bots Only 3 | . . 3 2 Max Kills in Single Turn 1 | . . 1 1 Gunslinging . | . . . . Exploded 1 | . . 1 . Melee 1 | . . . 1 Uniques/NPCs Destroyed . | . . . . Combat | -11 -10 -10 -9 -------- Run | Yrd Mat Min Mat Hostile Shots Fired 195 | . . 87 108 Missed 53 | . . 28 25 Damage Taken 1538 | . 42 554 942 Core 596 | . 14 177 405 Absorbed by Shields . | . . . . Core Remaining (%) 61 | 100 . 23 . Volleys Fired 40 | . . 37 3 Largest 2 | . . 2 1 Hottest 60 | . . 60 20 Shots Fired 58 | . . 55 3 Gun 58 | . . 55 3 Cannon . | . . . . Launcher . | . . . . Special . | . . . . Kinetic 48 | . . 45 3 Thermal . | . . . . Explosive . | . . . . Electromagnetic 10 | . . 10 . Robot Hit Streak 6 | . . 6 3 Robot Miss Streak 3 | . . 3 1 Penetration Max . | . . . . Secondary Targets 1 | . . 1 . Max Gunslinging Chain 1 | . . 1 . Shots Hit Robots 45 | . . 37 8 Core Hits 24 | . . 21 3 Critical Kills 1 | . . . 1 Critical Parts Destroyed 2 | . . . 2 Critical Strikes 3 | . . . 3 Smash 3 | . . . 3 Melee Attacks 6 | . . . 6 Impact 6 | . . . 6 Slashing . | . . . . Piercing . | . . . . Sneak Attacks . | . . . . Combat Hostiles . | . . . . Follow-up Attacks . | . . . . Damage Inflicted 610 | . . 387 223 Guns 330 | . . 318 12 Cannons . | . . . . Explosions 69 | . . 69 . Melee 211 | . . . 211 Ramming . | . . . . Kinetic 262 | . . 250 12 Thermal 69 | . . 69 . Explosive . | . . . . Electromagnetic 68 | . . 68 . Impact 211 | . . . 211 Slashing . | . . . . Piercing . | . . . . Highest Corruption . | . . . . Average Corruption . | . . . . Corruption Purged . | . . . . Corruption Blocked . | . . . . Overload Shots . | . . . . Overflow Damage 71 | . . . 71 Projectiles . | . . . . Explosions . | . . . . Melee 71 | . . . 71 Knockbacks . | . . . . Impact . | . . . . Kinetic . | . . . . Secondary . | . . . . Self-Inflicted Damage . | . . . . Shots . | . . . . Rammed . | . . . . Targets Rammed . | . . . . Kicked . | . . . . Crushed . | . . . . Highest Temperature 258 | . . 258 5 Average Temperature 88 | . . 91 3 Received Heat Transfer 648 | . . 138 510 Siege Activations . | . . . . Robots Corrupted 1 | . . . 1 Combat Hostiles 1 | . . . 1 Parts Fried 2 | . . . 2 Impact Corruptions 3 | . . . 3 Robots Melted . | . . . . Combat Hostiles . | . . . . Parts Melted . | . . . . Heat Transferred 100 | . . 100 . Parts Sabotaged . | . . . . Parts Stolen . | . . . . Parts Stripped . | . . . . Power Chain Reactions 2 | . . 2 . Alert | -11 -10 -10 -9 ------- Run | Yrd Mat Min Mat Peak Influence 156 | . 18 156 105 Initial 50 | . . 6 50 Average 63 | . 9 68 65 Maximum Alert Level . | . . . . Low Security (%) 100 | 100 100 100 100 Level 1 . | . . . . Level 2 . | . . . . Level 3 . | . . . . Level 4 . | . . . . Level 5 . | . . . . High Security . | . . . . Max Security . | . . . . Squads Dispatched 2 | . . 1 1 Investigation 1 | . . 1 . Extermination . | . . . . Reinforcement 1 | . . . 1 Assault . | . . . . Garrison . | . . . . Intercept . | . . . . Searches Triggered . | . . . . Construction Impeded . | . . . . Haulers Reinforced . | . . . . Active Scanning Responses . | . . . . Cargo Convoy Interrupts . | . . . . Stealth | -11 -10 -10 -9 --------- Run | Yrd Mat Min Mat Distress Signals 2 | . . . 2 Communications Jammed . | . . . . Distress Signals . | . . . . Times Spotted 22 | . 1 12 9 Peak Tracking Total 5 | . 1 3 5 Tactical Retreats 3 | . . 1 2 Traps | -11 -10 -10 -9 ------- Run | Yrd Mat Min Mat Traps Triggered 1 | . 1 . . Indirectly . | . . . . Trap Hack Attempts . | . . . . Triggered . | . . . . Disarmed . | . . . . Reprogrammed . | . . . . Reused . | . . . . Traps Extracted . | . . . . Installed . | . . . . Triggered . | . . . . Machines | -11 -10 -10 -9 ---------- Run | Yrd Mat Min Mat Machines Disabled . | . . . . Max in Single Turn . | . . . . Machines Repaired . | . . . . Machines Dismantled . | . . . . Machines Sabotaged . | . . . . Overloaded Fab Kills . | . . . . Hacking | -11 -10 -10 -9 --------- Run | Yrd Mat Min Mat Machines Accessed 2 | . 1 1 . Terminals 1 | . 1 . . Fabricators . | . . . . Repair Stations . | . . . . Recycling Units . | . . . . Scanalyzers . | . . . . Garrison Access . | . . . . Total Hacks 4 | . 3 1 . Successful 3 | . 2 1 . Failed 1 | . 1 . . Catastrophic . | . . . . Database Lockouts . | . . . . Manual . | . . . . Terminals 3 | . 3 . . Fabricators . | . . . . Repair Stations . | . . . . Recycling Units . | . . . . Scanalyzers . | . . . . Garrison Access . | . . . . Terminal Hacks 3 | . 2 1 . Open Door 1 | . . 1 . Alert Level 1 | . 1 . . Maintenance Status 1 | . 1 . . Fabricator Hacks . | . . . . Repair Station Hacks . | . . . . Recycling Unit Hacks . | . . . . Scanalyzer . | . . . . Garrison Access Hacks . | . . . . Unauthorized Hacks . | . . . . Terminals . | . . . . Fabricators . | . . . . Repair Stations . | . . . . Recycling Units . | . . . . Scanalyzers . | . . . . Garrison Access . | . . . . Data Cores Recovered . | . . . . Used . | . . . . Hacking Detections . | . . . . Full Trace Events . | . . . . Feedback Events . | . . . . Feedback Blocked . | . . . . Robot Schematics Acquired . | . . . . Robots Built . | . . . . Authchips . | . . . . Time . | . . . . Total Robot Build Rating . | . . . . Part Schematics Acquired . | . . . . Parts Built . | . . . . Authchips . | . . . . Time . | . . . . Total Part Build Rating . | . . . . Parts Repaired . | . . . . Time . | . . . . Parts Recycled . | . . . . Recycled Matter . | . . . . Retrieved Matter . | . . . . Retrieved Components . | . . . . Parts Scanalyzed . | . . . . Part Schematics Acquired . | . . . . Parts Damaged . | . . . . Bothacking | -11 -10 -10 -9 ------------ Run | Yrd Mat Min Mat Used RIF Installer . | . . . . Robots Hacked . | . . . . Non-combat . | . . . . Combat . | . . . . Robot Hacks Applied . | . . . . Relay Couplers Released . | . . . . Fabnet Peak Effective % . | . . . . Robots Rewired . | . . . . Allies Hacked . | . . . . Hacks Repelled . | . . . . Allies | -11 -10 -10 -9 -------- Run | Yrd Mat Min Mat Total Allies . | . . . . Largest Group . | . . . . Highest-Rated Group . | . . . . Highest-Rated Ally . | . . . . Total Orders . | . . . . Ally Attacks . | . . . . Total Damage . | . . . . Kills . | . . . . Allies Corrupted . | . . . . Allies Melted . | . . . . Intel | -11 -10 -10 -9 ------- Run | Yrd Mat Min Mat Robot Analysis Total . | . . . . Derelict Logs Recovered . | . . . . Drone Launches . | . . . . Drone Recoveries . | . . . . Exploration | -11 -10 -10 -9 ------------- Run | Yrd Mat Min Mat Turns Passed 1756 | 36 68 1194 458 Spaces Moved 439 | 32 67 262 78 Core 21 | 7 . 3 11 Treads . | . . . . Legs 107 | . . 40 67 Wheels 246 | 25 67 154 . Hover . | . . . . Flight 65 | . . 65 . Fastest Speed 50 | 50 100 100 400 Average Speed 371 | 89 100 415 571 Slowest Speed 1960 | 100 100 1960 1550 Overloaded Moves . | . . . . Propulsion Burnouts . | . . . . Robots Hopped . | . . . . Cave-ins Triggered . | . . . . Exploration Rate (%) 25 | 3 22 69 8 Regions Visited 3 Branch Regions 1 Pre-discovered Areas . | . . . . Known Exits Taken . | . . . . Unknown Exits Taken 3 | 1 1 1 . Scrap Searched 1 | . . 1 . Spaces Dug . | . . . . Terrain Destroyed 10 | . . 10 . Melee . | . . . . Projectile . | . . . . AOE 10 | . . 10 . Terrain Rammed . | . . . . Walls Destroyed . | . . . . Machines Disabled . | . . . . Actions | -11 -10 -10 -9 --------- Run | Yrd Mat Min Mat Total 519 | 38 67 325 89 Wait . | . . . . Move 436 | 31 66 261 78 Hop . | . . . . Pick Up 4 | 2 . 2 . Fast Attach 12 | 3 1 7 1 Attach 8 | 2 . 6 . Detach 7 | . . 6 1 Swap 1 | . . 1 . Drop 5 | . . 5 . Fire 40 | . . 37 3 Melee 6 | . . . 6 Ram . | . . . . Kick . | . . . . Crush . | . . . . Escape Stasis . | . . . . Rewire . | . . . . Trap . | . . . . Miscellaneous . | . . . . Route ------- -11/Scrapyard -10/Materials -10/Mines -9/Materials History --------- Turn | Location | Event 20 | -11/Scrapyard | Discovered new exit (range 15) 37 | -11/Scrapyard | Entered Materials 100 | -10/Materials | Discovered new exit (range 5) 105 | -10/Materials | Entered Mines 116 | -10/Mines | Met a Derelict shopkeep closing up shop 313 | -10/Mines | Build established: Mutant 718 | -10/Mines | Build established: Scavenger-Mutant 922 | -10/Mines | Discovered new exit (range 12) 963 | -10/Mines | Core integrity fell below 50% 1299 | -10/Mines | Entered Materials 1299 | -9/Materials | Evolved 2 slots: Power x1, Utility x1 1344 | -9/Materials | Build established: Mutant 1618 | -9/Materials | Lost 3 parts (1p2n) 1736 | -9/Materials | Core integrity fell below 50% 1748 | -9/Materials | Core integrity fell below 20% 1757 | -9/Materials | Destroyed by G-34 Mercenary with Small Laser Last Messages --------------- R-06 Scavenger inserts Corrupted Sml. Laser into recycling unit. Destroyed Heat Sink. G-34 Mercenary system corrupted by crushing effect. G-34 Mercenary system terminally corrupted. Aluminum Leg fried. R-06 Scavenger inserts Corrupted Heat Sink into recycling unit. K-01 Serf collects debris. Connecting with Recycling Unit... Current location identified: Materials K-01 Serf collects debris. K-01 Serf cleans the Electrolysis Chamber. K-01 Serf cleans the Recycling Unit. W-16 Scout sends out distress signal. K-01 Serf collects debris. W-16 Scout sends out distress signal. K-01 Serf cleans the Recycling Unit. Critical hit (Burn: +37). Map ----- +----------------------------------------------------+ | ?????????????????????????????????????????????????? | | ?????????????????????????????????????????????????? | | ???????????????????????##########????????????????? | | ???????????????????##### #????????????????? | | ???????????????????# # /! #????????????????? | | ???????????????????# # ! #????????????????? | | ???????????????????# # #????????????????? | | ???????????????????# + #????????????????? | | ?????????########### # """ #????????????????? | | ?????????# # # """ #????????????????? | | ?????????# """ """ # # """ #????????????????? | | ?????????# """ """ # # #????????????????? | | ?????????# """ """ # ##########????????????????? | | ?????????# """ # #?????????????????????????? | | ?????????# ! """%+ #?????????????????????????? | | ?????????# # #?????????????????????????? | | ?????????# # #?????????????????????????? | | ?????????########### #####?????????????????????? | | ???????########T### #?????????????????????? | | ?????? #?????????????????????? | | ?????? #?????????????????????? | | ?????? #?????????????????????? | | ??????###### % #?????????????????????? | | ???????????# g g #?????????????????????? | | ???????????# """ % g #?????????????????????? | | ???????????# """ m%Y ""@ #?????????????????????? | | ???????????# """ Y" #?????????????????????? | | ???????????+ "" + "?????????????????? | | ???????????# # | "?????????????????? | | ???????????# #?????????????????????? | | ???????????# ######### #?????????????????????? | | ???????????#?????????# #?????????????????????? | | ?????????????????????# #?????????????????????? | | ?????????????????????# #?????????????????????? | | ????????????????????? #?????????????????????? | | ????????????????????? #?????????????????????? | | ???????????????????? #?????????????????????? | | ?????????????????????#######?????????????????????? | | ?????????????????????????????????????????????????? | | ?????????????????????????????????????????????????? | | ?????????????????????????????????????????????????? | | ?????????????????????????????????????????????????? | | ?????????????????????????????????????????????????? | | ?????????????????????????????????????????????????? | | ?????????????????????????????????????????????????? | | ?????????????????????????????????????????????????? | | ?????????????????????????????????????????????????? | | ?????????????????????????????????????????????????? | | ?????????????????????????????????????????????????? | | ?????????????????????????????????????????????????? | +----------------------------------------------------+ Best States ------------- Heat Dissipation 28 Energy Generation 14 Energy Capacity 275 Matter Stores 300 Matter Capacity 300 Sight Range 16 Terrain Scan Density 10 Armor Coverage 225 Evasion (%) 40 Item Schematics ----------------- None Robot Schematics ------------------ None Fabricated ------------ Nothing Alien Tech Used ----------------- None Achievements -------------- None Challenges ------------ None Game ------ Seed ArmageddonThrusterCannon Manual? 0 Play Time 00:16:38 Cumulative 7.5 hours Start 2025.01.13 @ 23:05:59 End 2025.01.13 @ 23:20:30 Sessions 1 Manual Loads 0 Difficulty Rogue Special Mode None Game No. 17 Rogue 13 Adventurer 4 Explorer 0 Win Type - Total 0 Types 0/0/0/0/0/0/0/0/0 Lore% 3 Gallery% 11 Achievement% 11 Wizard Run 0 Options --------- Layout 1 ASCII 1 Keyboard 0 Movement Mouse Keybinds 0 Fullscreen 1 Font 24/Smallcaps Map View 50x35 Zoom Use 0% Tactical HUD 0 Map Filters NONE Filters NONE Steam 1 RUN: 530a1dcc-baea-4ec7-b830-acd919162be9